fUST/lending_fUST_20241230
["ID","MTS","AMOUNT","RATE_DAILY","PERIOD"]
[347138730,1735518633922,-500.0,0.0001697,2]
[347138731,1735518633933,-500.0,0.0001697,2]
[347138732,1735518633942,-500.0,0.0001697,2]
[347138733,1735518633952,-500.0,0.0001697,2]
[347138734,1735518633961,-500.0,0.0001697,2]
[347138735,1735518633971,-500.0,0.00016972,2]
[347138736,1735518633981,-500.0,0.00016972,2]
[347138737,1735518633991,-500.0,0.00016972,2]
[347138738,1735518634005,-500.0,0.00016972,2]
[347138739,1735518634017,-500.0,0.00016972,2]
[347138740,1735518634026,-500.0,0.00016972,2]
[347138741,1735518634035,-500.0,0.00016972,2]
[347138742,1735518634045,-566.4,0.00016975,2]
[347138743,1735518634054,-500.0,0.00016975,2]
[347138744,1735518634064,-500.0,0.00016975,2]
[347138745,1735518634073,-500.0,0.00016975,2]
[347138746,1735518634082,-500.0,0.00016975,2]
[347138747,1735518634091,-500.0,0.00016975,2]
[347138748,1735518634101,-500.0,0.00016975,2]
[347138749,1735518634111,-500.0,0.00016975,2]
[347138750,1735518634120,-500.0,0.00016975,2]
[347138751,1735518634129,-500.0,0.00016975,2]
[347138752,1735518634138,-500.0,0.00016975,2]
[347138753,1735518634147,-500.0,0.00016977,2]
[347138754,1735518634157,-500.0,0.00016999,2]
[347138755,1735518634166,-500.0,0.00016999,2]
[347138756,1735518634175,-500.0,0.00016999,2]
[347138757,1735518634185,-500.0,0.00016999,2]
[347138758,1735518634194,-500.0,0.00016999,2]
[347138759,1735518634203,-713.93,0.00016999,2]
[347138760,1735518634214,-500.0,0.00016999,2]
[347138761,1735518634224,-500.0,0.00016999,2]
[347138762,1735518634234,-500.0,0.00016999,2]
[347138763,1735518634244,-500.0,0.00016999,2]
[347138764,1735518634254,-152.0,0.00017071,2]
[347138765,1735518634264,-500.0,0.00017246,2]
[347138766,1735518634274,-500.0,0.00017246,2]
[347138767,1735518634284,-500.0,0.00017246,2]
[347138768,1735518634295,-500.0,0.00017246,2]
[347138769,1735518634305,-631.99979714,0.00017246,2]
[347138770,1735518634314,-500.0,0.00017246,2]
[347138771,1735518634324,-500.0,0.00017246,2]
[347138772,1735518634334,-566.4,0.00017249,2]
[347138773,1735518634343,-500.0,0.00017249,2]
[347138774,1735518634353,-500.0,0.00017249,2]
[347138775,1735518634363,-500.0,0.00017249,2]
[347138776,1735518634372,-500.0,0.00017249,2]
[347138777,1735518634381,-500.0,0.00017249,2]
[347138778,1735518634391,-500.0,0.00017249,2]
[347138779,1735518634401,-500.0,0.00017249,2]
[347138780,1735518634411,-500.0,0.00017249,2]
[347138781,1735518634421,-500.0,0.00017249,2]
[347138782,1735518634430,-500.0,0.00017249,2]
[347138783,1735518634440,-500.0,0.00017251,2]
[347138784,1735518634449,-500.0,0.00017273,2]
[347138785,1735518634459,-500.0,0.00017273,2]
[347138786,1735518634468,-500.0,0.00017273,2]
[347138787,1735518634477,-500.0,0.00017273,2]
[347138788,1735518634486,-500.0,0.00017273,2]
[347138789,1735518634496,-713.93,0.00017273,2]
[347138790,1735518634506,-500.0,0.00017273,2]
[347138791,1735518634517,-166.332,0.00017329,2]
[347138792,1735518634527,-202.3140027,0.00017329,2]
[347138793,1735518634537,-500.0,0.00017369,2]
[347138794,1735518634547,-351.68824643,0.00017468,2]
[347138795,1735518634556,-500.0,0.0001752,2]
[347138796,1735518634566,-500.0,0.0001752,2]
[347138797,1735518634576,-500.0,0.0001752,2]
[347138798,1735518634586,-500.0,0.0001752,2]
[347138799,1735518634595,-500.0,0.0001752,2]
[347138800,1735518634605,-592.57,0.0001752,2]
[347138801,1735518634615,-566.4,0.00017523,2]
[347138802,1735518634624,-500.0,0.00017523,2]
[347138803,1735518634634,-500.0,0.00017523,2]
[347138804,1735518634643,-500.0,0.00017523,2]
[347138805,1735518634652,-500.0,0.00017523,2]
[347138806,1735518634661,-500.0,0.00017523,2]
[347138807,1735518634670,-500.0,0.00017523,2]
[347138808,1735518634679,-500.0,0.00017523,2]
[347138809,1735518634688,-500.0,0.00017523,2]
[347138810,1735518634697,-500.0,0.00017523,2]
[347138811,1735518634705,-500.0,0.00017523,2]
[347138812,1735518634715,-500.0,0.00017525,2]
[347138813,1735518634723,-500.0,0.00017547,2]
[347138814,1735518634732,-500.0,0.00017547,2]
[347138815,1735518634742,-500.0,0.00017547,2]
[347138816,1735518634753,-500.0,0.00017547,2]
[347138817,1735518634762,-500.0,0.00017547,2]
[347138818,1735518634771,-713.93,0.00017547,2]
[347138819,1735518634780,-500.0,0.00017547,2]
[347138820,1735518634789,-500.0,0.00017641,2]
[347138821,1735518634798,-500.0,0.00017794,2]
[347138822,1735518634808,-500.0,0.00017794,2]
[347138823,1735518634817,-500.0,0.00017794,2]
[347138824,1735518634826,-500.0,0.00017794,2]
[347138825,1735518634835,-500.0,0.00017794,2]
[347138826,1735518634844,-500.0,0.00017797,2]
[347138827,1735518634853,-500.0,0.00017797,2]
[347138828,1735518634862,-566.4,0.00017797,2]
[347138829,1735518634871,-500.0,0.00017797,2]
[347138830,1735518634881,-500.0,0.00017797,2]
[347138831,1735518634889,-500.0,0.00017797,2]
[347138832,1735518634898,-500.0,0.00017797,2]
[347138833,1735518635292,-500.0,0.00017797,2]
[347138834,1735518635302,-500.0,0.00017797,2]
[347138835,1735518635311,-500.0,0.00017797,2]
[347138836,1735518635320,-500.0,0.00017797,2]
[347138837,1735518635329,-500.0,0.00017797,2]
[347138838,1735518635338,-356.16,0.00017797,2]
[347138839,1735518635347,-500.0,0.00017797,2]
[347138840,1735518635356,-503.47595851,0.00017797,2]
[347138841,1735518635366,-500.0,0.00017797,2]
[347138842,1735518635375,-500.0,0.00017797,2]
[347138843,1735518635384,-500.0,0.00017797,2]
[347138844,1735518635393,-500.0,0.00017797,2]
[347138845,1735518635402,-418.95523688,0.00017797,2]
[347138846,1735518635411,-500.0,0.00017797,2]
[347138847,1735518635420,-500.0,0.00017797,2]
[347138848,1735518635429,-500.0,0.00017797,2]
[347138849,1735518635439,-500.0,0.00017797,2]
[347138850,1735518635448,-500.0,0.00017797,2]
[347138851,1735518635458,-500.0,0.00017797,2]
[347138852,1735518635467,-452.31,0.00017799,2]
[347138853,1735518635477,-648.24871535,0.00017821,2]
[347138854,1735518635488,-500.0,0.00017821,2]
[347138855,1735518635498,-329.42838863,0.00017821,2]
[347138856,1735518635508,-500.0,0.00017821,2]
[347138857,1735518635518,-156.12780376,0.00017821,2]
[347138858,1735518635527,-713.93,0.00017821,2]
[347138859,1735518635537,-500.0,0.00017821,2]
[347138860,1735518635546,-500.0,0.00017883,2]
[347138861,1735518635555,-1000.0,0.00017917,2]
[347138862,1735518635564,-5164.75756255,0.00018,2]
[347138863,1735518635573,-237.37,0.00018,2]
[347138864,1735518635582,-237.37,0.00018,2]
[347138865,1735518635591,-237.37,0.00018,2]
[347138866,1735518635600,-351.68824643,0.00018067,2]
[347138867,1735518635609,-500.0,0.00018068,2]
[347138868,1735518635618,-500.0,0.00018068,2]
[347138869,1735518635628,-500.0,0.00018068,2]
[347138870,1735518635637,-500.0,0.00018068,2]
[347138871,1735518635646,-500.0,0.00018068,2]
[347138872,1735518635655,-500.0,0.00018071,2]
[347138873,1735518635672,-566.4,0.00018071,2]
[347138874,1735518635684,-500.0,0.00018071,2]
[347138875,1735518635694,-500.0,0.00018071,2]
[347138876,1735518635703,-500.0,0.00018071,2]
[347138877,1735518635712,-500.0,0.00018071,2]
[347138878,1735518635722,-500.0,0.00018071,2]
[347138879,1735518635732,-500.0,0.00018071,2]
[347138880,1735518635741,-500.0,0.00018071,2]
[347138881,1735518635752,-500.0,0.00018071,2]
[347138882,1735518635761,-500.0,0.00018071,2]
[347138883,1735518635770,-500.0,0.00018071,2]
[347138884,1735518635779,-500.0,0.00018071,2]
[347138885,1735518635788,-456.34,0.00018071,2]
[347138886,1735518635798,-500.0,0.00018095,2]
[347138887,1735518635807,-500.0,0.00018095,2]
[347138888,1735518635817,-713.93,0.00018095,2]
[347138889,1735518635826,-500.0,0.00018095,2]
[347138890,1735518635836,-634.48827319,0.00018189,2]
[347138891,1735518635845,-500.0,0.00018342,2]
[347138892,1735518635855,-500.0,0.00018342,2]
[347138893,1735518635864,-500.0,0.00018342,2]
[347138894,1735518635873,-500.0,0.00018342,2]
[347138895,1735518635882,-500.0,0.00018342,2]
[347138896,1735518635892,-500.0,0.00018345,2]
[347138897,1735518635902,-566.4,0.00018345,2]
[347138898,1735518635911,-563.14,0.00018345,2]
[347138899,1735518635922,-213.11238855,0.00018345,2]
[347138900,1735518635933,-500.0,0.00018345,2]
[347138901,1735518635943,-443.25,0.00018345,2]
[347138902,1735518635952,-500.0,0.00018345,2]
[347138903,1735518635961,-187.87683335,0.00018345,2]
[347138904,1735518635971,-500.0,0.00018345,2]
[347138905,1735518635980,-500.0,0.00018345,2]
[347138906,1735518635989,-500.0,0.00018345,2]
[347138907,1735518636001,-500.67256741,0.00018345,2]
[347138908,1735518636011,-151.0,0.00018357,2]
[347138909,1735518636021,-277.98255061,0.00018369,2]
[347138910,1735518636031,-500.0,0.00018369,2]
[347138911,1735518636040,-713.93,0.00018369,2]
[347138912,1735518636049,-500.0,0.00018369,2]
[347138913,1735518636059,-1000.0,0.00018431,2]
[347138914,1735518636068,-420.0,0.00018535,2]
[347138915,1735518636077,-500.0,0.00018616,2]
[347138916,1735518636086,-500.0,0.00018616,2]
[347138917,1735518636095,-500.0,0.00018616,2]
[347138918,1735518636105,-500.0,0.00018616,2]
[347138919,1735518636114,-287.79310676,0.00018616,2]
[347138920,1735518636123,-500.0,0.00018619,2]
[347138921,1735518636132,-566.4,0.00018619,2]
[347138922,1735518636142,-500.0,0.00018619,2]
[347138923,1735518636151,-500.0,0.00018619,2]
[347138924,1735518636160,-633.80983261,0.00018619,2]
[347138925,1735518636169,-500.0,0.00018619,2]
[347138926,1735518636178,-500.0,0.00018619,2]
[347138927,1735518636187,-500.0,0.00018643,2]
[347138928,1735518636196,-713.93,0.00018643,2]
[347138929,1735518636207,-500.0,0.00018643,2]
[347138930,1735518636216,-351.68824643,0.00018665,2]
[347138931,1735518636225,-500.0,0.0001889,2]
[347138932,1735518636234,-500.0,0.0001889,2]
[347138933,1735518636243,-500.0,0.0001889,2]
[347138934,1735518636253,-500.0,0.0001889,2]
[347138935,1735518636262,-500.0,0.00018893,2]
[347138936,1735518636271,-566.4,0.00018893,2]
[347138937,1735518636281,-221.61337904,0.00018893,2]
[347138938,1735518636290,-500.0,0.00018893,2]
[347138939,1735518636300,-500.0,0.00018893,2]
[347138940,1735518636309,-500.0,0.00018893,2]
[347138941,1735518636318,-151.0,0.000189,2]
[347138942,1735518636327,-2148.9178028,0.000189,2]
[347138943,1735518636337,-151.0,0.000189,2]
[347138944,1735518636346,-151.0,0.000189,2]
[347138945,1735518636355,-151.0,0.000189,2]
[347138946,1735518636365,-161.15996,0.000189,2]
[347138947,1735518636374,-158.185369,0.000189,2]
[347138948,1735518636383,-158.185369,0.000189,2]
[347138949,1735518636392,-1230.046379,0.000189,2]
[347138950,1735518636401,-1230.046379,0.000189,2]
[347138951,1735518636410,-500.0,0.00018917,2]
[347138952,1735518636419,-713.93,0.00018917,2]
[347138953,1735518636428,-500.0,0.00018917,2]
[347138954,1735518636437,-701.534651,0.00018917,2]
[347138955,1735518636446,-701.534651,0.00018917,2]
[347138956,1735518636455,-357.662044,0.00018917,2]
[347138957,1735518636464,-357.662044,0.00018917,2]
[347138958,1735518636473,-267.804292,0.00018917,2]
[347138959,1735518636482,-267.804292,0.00018917,2]
[347138960,1735518636491,-1500.0,0.00018919,2]
[347138961,1735518636501,-488.653,0.00019,2]
[347138962,1735518636510,-151.0,0.00019,2]
[347138963,1735518636520,-963.279903,0.00019,2]
[347138964,1735518636530,-963.279903,0.00019,2]
[347138965,1735518636638,-151.0,0.00019,2]
[347138966,1735518636647,-151.0,0.00019,2]
[347138967,1735518636657,-438.410584,0.00019,2]
[347138968,1735518636667,-438.410584,0.00019,2]
[347138969,1735518636676,-445.0800052,0.00019078,2]
[347138970,1735518636685,-151.05477497,0.00019116,2]
[347138971,1735518636694,-214.8,0.00019164,2]
[347138972,1735518636703,-500.0,0.00019164,2]
[347138973,1735518636712,-199.48,0.00019164,2]
[347138974,1735518636721,-500.0,0.00019164,2]
[347138975,1735518636730,-500.0,0.00019167,2]
[347138976,1735518636739,-566.4,0.00019167,2]
[347138977,1735518636749,-500.0,0.00019167,2]
[347138978,1735518636758,-500.0,0.00019167,2]
[347138979,1735518636767,-500.0,0.00019167,2]
[347138980,1735518636776,-151.0,0.00019177,2]
[347138981,1735518636785,-151.0,0.00019178,2]
[347138982,1735518636794,-151.0,0.00019178,2]
[347138983,1735518636803,-314.907907,0.00019178,2]
[347138984,1735518636812,-314.907907,0.00019178,2]
[347138985,1735518636821,-444.614423,0.00019178,2]
[347138986,1735518636830,-444.614423,0.00019178,2]
[347138987,1735518636839,-500.0,0.00019178,2]
[347138988,1735518636847,-500.0,0.00019178,2]
[347138989,1735518636856,-500.0,0.00019178,2]
[347138990,1735518636865,-500.0,0.00019178,2]
[347138991,1735518636874,-427.29185594,0.00019178,2]
[347138992,1735518636883,-1799.538833,0.00019178,2]
[347138993,1735518636892,-1799.538833,0.00019178,2]
[347138994,1735518636901,-151.0,0.00019178,2]
[347138995,1735518636910,-151.0,0.00019178,2]
[347138996,1735518636919,-153.500701,0.00019178,2]
[347138997,1735518636931,-151.0,0.00019178,2]
[347138998,1735518636941,-151.0,0.00019178,2]
[347138999,1735518636950,-244.220757,0.00019178,2]
[347139000,1735518636959,-244.220757,0.00019178,2]
[347139001,1735518636969,-372.93916,0.00019178,2]
[347139002,1735518636978,-372.93916,0.00019178,2]
[347139003,1735518636987,-369.153974,0.00019178,2]
[347139004,1735518636997,-369.153974,0.00019178,2]
[347139005,1735518637007,-246.7198584,0.00019178,2]
[347139006,1735518637017,-500.0,0.00019191,2]
[347139007,1735518637026,-713.93,0.00019191,2]
[347139008,1735518637035,-500.0,0.00019191,2]
[347139009,1735518637044,-151.0,0.00019246,2]
[347139010,1735518637053,-151.0,0.00019246,2]
[347139011,1735518637062,-151.0,0.00019246,2]
[347139012,1735518637071,-351.68824643,0.00019263,2]
[347139013,1735518637080,-817.29235454,0.00019433,2]
[347139014,1735518637089,-500.0,0.00019438,2]
[347139015,1735518637098,-500.0,0.00019438,2]
[347139016,1735518637107,-504.15686414,0.00019441,2]
[347139017,1735518637117,-566.4,0.00019441,2]
[347139018,1735518637126,-500.0,0.00019441,2]
[347139019,1735518637135,-332.96808263,0.00019441,2]
[347139020,1735518637144,-281.25,0.00019441,2]
[347139021,1735518637153,-208.872121,0.00019465,2]
[347139022,1735518637162,-208.872121,0.00019465,2]
[347139023,1735518637171,-500.0,0.00019465,2]
[347139024,1735518637180,-154.956363,0.00019465,2]
[347139025,1735518637189,-151.0,0.00019465,2]
[347139026,1735518637199,-154.956363,0.00019465,2]
[347139027,1735518637209,-713.93,0.00019465,2]
[347139028,1735518637218,-441.794918,0.00019465,2]
[347139029,1735518637227,-441.794918,0.00019465,2]
[347139030,1735518637236,-500.0,0.00019465,2]
[347139031,1735518637245,-445.08000518,0.00019492,2]
[347139032,1735518637255,-500.0,0.00019712,2]
[347139033,1735518637264,-500.0,0.00019712,2]
[347139034,1735518637273,-166.279245,0.00019715,2]
[347139035,1735518637282,-166.279245,0.00019715,2]
[347139036,1735518637291,-151.0,0.00019715,2]
[347139037,1735518637300,-151.0,0.00019715,2]
[347139038,1735518637309,-151.0,0.00019715,2]
[347139039,1735518637318,-566.4,0.00019715,2]
[347139040,1735518637327,-500.0,0.00019715,2]
[347139041,1735518637336,-701.534651,0.00019715,2]
[347139042,1735518637346,-701.534651,0.00019715,2]
[347139043,1735518637356,-357.662044,0.00019715,2]
[347139044,1735518637366,-357.662044,0.00019715,2]
[347139045,1735518637375,-267.804292,0.00019715,2]
[347139046,1735518637384,-267.804292,0.00019715,2]
[347139047,1735518637394,-500.0,0.00019726,2]
[347139048,1735518637404,-151.0,0.00019726,2]
[347139049,1735518637414,-151.0,0.00019726,2]
[347139050,1735518637423,-151.0,0.00019726,2]
[347139051,1735518637432,-158.185369,0.00019726,2]
[347139052,1735518637441,-158.185369,0.00019726,2]
[347139053,1735518637450,-1230.046379,0.00019726,2]
[347139054,1735518637459,-1230.046379,0.00019726,2]
[347139055,1735518637468,-500.0,0.00019728,2]
[347139056,1735518637476,-500.0,0.00019728,2]
[347139057,1735518637485,-500.0,0.00019728,2]
[347139058,1735518637494,-151.0,0.00019739,2]
[347139059,1735518637503,-151.0,0.00019739,2]
[347139060,1735518637512,-500.0,0.00019739,2]
[347139061,1735518637521,-713.93,0.00019739,2]
[347139062,1735518637530,-500.0,0.00019739,2]
[347139063,1735518637539,-963.279903,0.00019739,2]
[347139064,1735518637548,-963.279903,0.00019739,2]
[347139065,1735518637557,-151.0,0.00019739,2]
[347139066,1735518637566,-151.0,0.00019739,2]
[347139067,1735518637574,-438.410584,0.00019739,2]
[347139068,1735518637583,-438.410584,0.00019739,2]
[347139069,1735518637592,-151.0,0.00019739,2]
[347139070,1735518637601,-464.9144601,0.00019799,2]
[347139071,1735518637610,-343.73013361,0.000198,2]
[347139072,1735518637619,-351.68824643,0.00019861,2]
[347139073,1735518637628,-352.4553754,0.00019863,2]
[347139074,1735518637637,-500.0,0.00019885,2]
[347139075,1735518637646,-445.08000518,0.00019907,2]
[347139076,1735518637655,-2126.88391112,0.00019913,2]
[347139077,1735518637664,-211.84169841,0.00019986,2]
[347139078,1735518637674,-500.0,0.00019986,2]
[347139079,1735518637683,-566.4,0.00019989,2]
[347139080,1735518637691,-151.0,0.00019989,2]
[347139081,1735518637700,-244.220757,0.00019989,2]
[347139082,1735518637709,-244.220757,0.00019989,2]
[347139083,1735518637719,-372.93916,0.00019989,2]
[347139084,1735518637728,-372.93916,0.00019989,2]
[347139085,1735518637737,-500.0,0.00019989,2]
[347139086,1735518637746,-369.153974,0.00019989,2]
[347139087,1735518637757,-369.153974,0.00019989,2]
[347139088,1735518637766,-291.717319,0.00019991,2]
[347139089,1735518637775,-291.717319,0.00019991,2]
[347139090,1735518637784,-151.0,0.00019991,2]
[347139091,1735518637793,-151.0,0.00019991,2]
[347139092,1735518637802,-177.86590129,0.00019998,2]
[347139093,1735518637811,-151.0,0.00019999,2]
[347139094,1735518637820,-271185.02440286,0.0002,2]
[347139095,1735518637829,-19765.5332555,0.0002,2]
[347139096,1735518637838,-1167.30758517,0.0002,4]
[347139121,1735518638584,-151.0,0.000189,2]
[347139123,1735518638593,-151.0,0.00019726,2]
[347139125,1735518638603,-133489.86952469,0.0002,4]
[347139127,1735518638612,-151.0,0.0002,2]
[347139129,1735518638621,-861.203143,0.0002,2]
[347139131,1735518638630,-861.203143,0.0002,2]
[347139133,1735518638640,-151.0,0.0002,2]
[347139135,1735518638649,-151.0,0.0002,2]
[347139137,1735518638658,-151.0,0.0002,2]
[347139139,1735518638667,-291.717319,0.0002,2]
[347139141,1735518638677,-291.717319,0.0002,2]
[347139143,1735518638686,-151.0,0.0002,2]
[347139145,1735518638695,-151.0,0.0002,2]
[347139147,1735518638704,-151.0,0.0002,2]
[347139149,1735518638714,-151.0,0.0002,2]
[347139151,1735518638724,-166.279245,0.0002,2]
[347139153,1735518638733,-166.279245,0.0002,2]
[347139155,1735518638743,-151.0,0.0002,2]
[347139157,1735518638753,-151.0,0.0002,2]
[347139159,1735518638762,-151.0,0.0002,2]
[347139161,1735518638771,-151.0,0.0002,2]
[347139162,1735518638780,-151.0,0.0002,2]
[347139163,1735518638790,-208.872121,0.0002,2]
[347139164,1735518638799,-208.872121,0.0002,2]
[347139165,1735518638808,-154.956363,0.0002,2]
[347139166,1735518638817,-151.0,0.0002,2]
[347139167,1735518638826,-154.956363,0.0002,2]
[347139168,1735518638835,-441.794918,0.0002,2]
[347139169,1735518638845,-441.794918,0.0002,2]
[347139170,1735518638854,-151.0,0.0002,2]
[347139171,1735518638864,-151.0,0.0002,2]
[347139172,1735518638873,-314.907907,0.0002,2]
[347139173,1735518638884,-314.907907,0.0002,2]
[347139174,1735518638896,-444.614423,0.0002,2]
[347139175,1735518638906,-444.614423,0.0002,2]
[347139176,1735518638915,-1799.538833,0.0002,2]
[347139177,1735518638928,-1799.538833,0.0002,2]
[347139178,1735518638937,-151.0,0.0002,2]
[347139179,1735518638947,-151.0,0.0002,2]
[347139180,1735518638956,-151.0,0.0002,2]
[347139181,1735518638966,-151.0,0.0002,2]
[347139182,1735518638975,-244.220757,0.0002,2]
[347139183,1735518638984,-244.220757,0.0002,2]
[347139184,1735518638994,-372.93916,0.0002,2]
[347139185,1735518639004,-372.93916,0.0002,2]
[347139186,1735518639014,-369.153974,0.0002,2]
[347139187,1735518639023,-963.279903,0.0002,2]
[347139188,1735518639033,-369.153974,0.0002,2]
[347139189,1735518639042,-963.279903,0.0002,2]
[347139190,1735518639051,-151.0,0.0002,2]
[347139191,1735518639061,-151.0,0.0002,2]
[347139192,1735518639147,-151.0,0.0002,2]
[347139193,1735518639158,-459065.6802055,0.0002,4]
[347139237,1735518643679,-500.0,0.00016972,2]
[347139238,1735518643689,-500.0,0.00017246,2]
[347139239,1735518643698,-500.0,0.0001752,2]
[347139240,1735518643709,-190.43,0.00017794,2]
[347139241,1735518643718,-500.0,0.00019973,2]
[347139243,1735518643727,-5703.23557637,0.0002,4]
[347139247,1735518648790,816.887,0.00025,120]
[347139252,1735518860909,500.0,0.00021148,120]
[347140745,1735519831843,-400.0,0.00013973,2]
[347140747,1735519831853,-716.9289003,0.00015898,2]
[347140749,1735519831862,-633.200456,0.00015958,2]
[347140751,1735519831872,-1461.13522691,0.00016871,2]
[347140753,1735519831882,-300.0,0.0001697,2]
[347140755,1735519831891,-500.0,0.00016971,2]
[347140757,1735519831901,-206.31219054,0.00016971,2]
[347140759,1735519831910,-500.0,0.00016971,2]
[347140761,1735519831919,-500.0,0.00016971,2]
[347140763,1735519831929,-500.0,0.00016971,2]
[347140765,1735519831938,-361.63810794,0.00016971,2]
[347140767,1735519831947,-500.0,0.00016971,2]
[347140769,1735519831957,-500.0,0.00016971,2]
[347140770,1735519831966,-500.0,0.00016971,2]
[347140772,1735519831975,-500.0,0.00016971,2]
[347140774,1735519831985,-500.0,0.00016971,2]
[347140776,1735519831994,-500.0,0.00016971,2]
[347140777,1735519832004,-500.0,0.00016971,2]
[347140779,1735519832013,-500.0,0.00016971,2]
[347140782,1735519832023,-373.3055,0.00016971,2]
[347140784,1735519832032,-500.0,0.00016971,2]
[347140786,1735519832041,-500.0,0.00016971,2]
[347140788,1735519832050,-500.0,0.00016971,2]
[347140790,1735519832060,-500.0,0.00016971,2]
[347140792,1735519832069,-500.0,0.00016971,2]
[347140794,1735519832079,-500.0,0.00016971,2]
[347140796,1735519832088,-500.0,0.00016971,2]
[347140798,1735519832097,-500.0,0.00016971,2]
[347140800,1735519832107,-500.0,0.00016971,2]
[347140802,1735519832116,-500.0,0.00016971,2]
[347140804,1735519832126,-29.52369453,0.00016971,2]
[347140806,1735519832138,-470.47630547,0.00016971,2]
[347140808,1735519832147,-147.05779452,0.00016971,2]
[347140810,1735519832158,-352.94220548,0.00016971,2]
[347140812,1735519832168,-500.0,0.00016971,2]
[347140814,1735519832177,-421.95612704,0.00016971,2]
[347140816,1735519832187,-500.0,0.00016971,2]
[347140818,1735519832198,-500.0,0.00016971,2]
[347140820,1735519832207,-500.0,0.00016971,2]
[347140822,1735519832217,-500.0,0.00016972,2]
[347140824,1735519832227,-500.0,0.00016972,2]
[347140825,1735519832237,-309.81902416,0.00016972,2]
[347140827,1735519832246,-478.85635669,0.00016972,2]
[347140829,1735519832256,-500.0,0.00016972,2]
[347140831,1735519832265,-500.0,0.00016972,2]
[347140833,1735519832274,-500.0,0.00016972,2]
[347140835,1735519832284,-500.0,0.00016999,2]
[347140837,1735519832294,-500.0,0.00016999,2]
[347140839,1735519832303,-500.0,0.00016999,2]
[347140841,1735519832314,-2673.81,0.00016999,2]
[347140843,1735519832323,-175.84412323,0.00017146,2]
[347140845,1735519832332,-175.9581502,0.00017245,2]
[347140847,1735519832341,-282.8140132,0.00017245,2]
[347140850,1735519832353,-217.1859868,0.00017245,2]
[347140851,1735519832363,-500.0,0.00017246,2]
[347140853,1735519832373,-500.0,0.00017246,2]
[347140855,1735519832384,-494.66,0.00017246,2]
[347140857,1735519832393,-482.61578569,0.00017246,2]
[347140860,1735519832405,-17.38421431,0.00017246,2]
[347140862,1735519832417,-500.0,0.00017246,2]
[347140864,1735519832427,-500.0,0.00017273,2]
[347140866,1735519832436,-500.0,0.00017273,2]
[347140868,1735519832446,-500.0,0.00017273,2]
[347140870,1735519832456,-2673.81,0.00017273,2]
[347140872,1735519832465,-166.332,0.00017341,2]
[347140874,1735519832475,-554.97919704,0.00017519,2]
[347140876,1735519832484,-500.0,0.0001752,2]
[347140878,1735519832493,-500.0,0.0001752,2]
[347140890,1735519832596,-500.0,0.0001752,2]
[347140892,1735519832607,-266.89,0.0001752,2]
[347140894,1735519832616,-500.0,0.00017543,2]
[347140896,1735519832626,-500.0,0.00017547,2]